[Event "Titled Tuesday Blitz November 08 Late 2022"]
[White "Grigorov, Grigor"]
[Black "Romero Ruscalleda, Josep"]
[WhiteFideId "2907313"]
[BlackFideId "2231859"]
[WhiteElo "2510"]
[BlackElo "2183"]
[Result "1-0"]
[Round "07"]
[TimeControl "180+1"]
[Date "2022.11.09"]
[WhiteClock "0:00:55"]
[BlackClock "0:00:19"]

1. Nf3 {[%clk 0:03:00]}  g6 {[%clk 0:03:00]} 2. d4 {[%clk 0:03:00]}  Bg7 {[%clk 0:03:01]} 3. c3 {[%clk 0:02:58]}  d6 {[%clk 0:03:01]} 4. e4 {[%clk 0:02:55]}  Nf6 {[%clk 0:02:59]} 5. Bd3 {[%clk 0:02:56]}  O-O {[%clk 0:02:59]} 6. O-O {[%clk 0:02:56]}  Nbd7 {[%clk 0:02:58]} 7. Re1 {[%clk 0:02:56]}  e5 {[%clk 0:02:58]} 8. Bg5 {[%clk 0:02:54]}  h6 {[%clk 0:02:57]} 9. Bh4 {[%clk 0:02:54]}  b6 {[%clk 0:02:50]} 10. Nbd2 {[%clk 0:02:53]}  Bb7 {[%clk 0:02:49]} 11. Qc2 {[%clk 0:02:53]}  g5 {[%clk 0:02:46]} 12. Bg3 {[%clk 0:02:53]}  Nh5 {[%clk 0:02:46]} 13. dxe5 {[%clk 0:02:47]}  dxe5 {[%clk 0:02:37]} 14. Nc4 {[%clk 0:02:47]}  Qe7 {[%clk 0:02:35]} 15. Ne3 {[%clk 0:02:46]}  Nc5 {[%clk 0:02:27]} 16. Nf5 {[%clk 0:02:43]}  Qd7 {[%clk 0:02:10]} 17. Rad1 {[%clk 0:02:15]}  Nxg3 {[%clk 0:02:09]} 18. Nxg3 {[%clk 0:02:07]}  Nxd3 {[%clk 0:02:01]} 19. Rxd3 {[%clk 0:02:07]}  Qe6 {[%clk 0:02:01]} 20. c4 {[%clk 0:02:02]}  Rfd8 {[%clk 0:01:58]} 21. Red1 {[%clk 0:02:01]}  Bf6 {[%clk 0:01:51]} 22. h3 {[%clk 0:01:52]}  Rxd3 {[%clk 0:01:45]} 23. Rxd3 {[%clk 0:01:53]}  Rd8 {[%clk 0:01:44]} 24. Nf5 {[%clk 0:01:51]}  Kh7 {[%clk 0:01:41]} 25. Rxd8 {[%clk 0:01:35]}  Bxd8 {[%clk 0:01:40]} 26. Qd3 {[%clk 0:01:34]}  Be7 {[%clk 0:01:34]} 27. Nh2 {[%clk 0:01:25]}  Bf8 {[%clk 0:00:42]} 28. Ng4 {[%clk 0:01:17]}  h5 {[%clk 0:00:33]} 29. Nge3 {[%clk 0:01:16]}  Kg6 {[%clk 0:00:29]} 30. Nd5 {[%clk 0:01:12]}  Bd6 {[%clk 0:00:28]} 31. b3 {[%clk 0:01:03]}  Bc5 {[%clk 0:00:20]} 32. Nxc7 {[%clk 0:01:01]}  Qc6 {[%clk 0:00:20]} 33. Nd5 {[%clk 0:00:55]}  b5 {[%clk 0:00:19]} 34. Nde7+ {[%clk 0:00:55]}  Bxe7 {[%clk 0:00:19]} 35. Nxe7+ {[%clk 0:00:55]} 1-0


[Site "https://www.chess.com"]

[Event "Titled Tuesday Blitz November 08 Late 2022"]
[White "Gritsenko, Nikolai"]
[Black "Ventura Bolet, Maxim"]
[WhiteFideId "14112493"]
[BlackFideId "22238824"]
[WhiteElo "2389"]
[BlackElo "2186"]
[Result "1-0"]
[Round "07"]
[TimeControl "180+1"]
[Date "2022.11.09"]
[WhiteClock "0:00:17"]
[BlackClock "0:00:02"]

1. b3 {[%clk 0:03:00]}  e5 {[%clk 0:02:54]} 2. Bb2 {[%clk 0:03:01]}  Nc6 {[%clk 0:02:55]} 3. c4 {[%clk 0:03:01]}  Nf6 {[%clk 0:02:50]} 4. e3 {[%clk 0:03:02]}  d5 {[%clk 0:02:45]} 5. cxd5 {[%clk 0:03:02]}  Nxd5 {[%clk 0:02:45]} 6. a3 {[%clk 0:03:02]}  Bd6 {[%clk 0:02:45]} 7. d3 {[%clk 0:03:02]}  Bd7 {[%clk 0:02:40]} 8. Nf3 {[%clk 0:03:02]}  Qe7 {[%clk 0:02:36]} 9. Nbd2 {[%clk 0:03:01]}  O-O {[%clk 0:02:32]} 10. Qc2 {[%clk 0:02:58]}  Rae8 {[%clk 0:02:31]} 11. Be2 {[%clk 0:02:57]}  Kh8 {[%clk 0:02:30]} 12. O-O {[%clk 0:02:53]}  f5 {[%clk 0:02:29]} 13. Nc4 {[%clk 0:02:42]}  e4 {[%clk 0:02:27]} 14. Nd4 {[%clk 0:02:38]}  Bxh2+ {[%clk 0:02:17]} 15. Kxh2 {[%clk 0:02:37]}  Qh4+ {[%clk 0:02:15]} 16. Kg1 {[%clk 0:02:37]}  Rf6 {[%clk 0:02:12]} 17. Nxc6 {[%clk 0:01:56]}  Rh6 {[%clk 0:02:02]} 18. f4 {[%clk 0:01:50]}  Bxc6 {[%clk 0:01:13]} 19. dxe4 {[%clk 0:01:36]}  Qh2+ {[%clk 0:01:03]} 20. Kf2 {[%clk 0:01:33]}  Qh4+ {[%clk 0:01:03]} 21. g3 {[%clk 0:01:28]}  Qh2+ {[%clk 0:01:03]} 22. Ke1 {[%clk 0:01:28]}  Qxg3+ {[%clk 0:01:00]} 23. Kd2 {[%clk 0:01:27]}  Nxe3 {[%clk 0:00:37]} 24. Nxe3 {[%clk 0:01:13]}  Rd6+ {[%clk 0:00:36]} 25. Nd5 {[%clk 0:01:07]}  Rxe4 {[%clk 0:00:28]} 26. Kc1 {[%clk 0:00:53]}  Rxd5 {[%clk 0:00:24]} 27. Kb1 {[%clk 0:00:34]}  Qe3 {[%clk 0:00:19]} 28. Bc4 {[%clk 0:00:29]}  Rd2 {[%clk 0:00:07]} 29. Qc3 {[%clk 0:00:28]}  Rxb2+ {[%clk 0:00:04]} 30. Kxb2 {[%clk 0:00:25]}  Qc5 {[%clk 0:00:01]} 31. Rad1 {[%clk 0:00:21]}  h6 {[%clk 0:00:02]} 32. Rg1 {[%clk 0:00:19]}  Kh7 {[%clk 0:00:02]} 33. Qxg7# {[%clk 0:00:17]} 1-0


[Site "https://www.chess.com"]

[Event "Titled Tuesday Blitz November 08 Late 2022"]
[White "Jones, Gawain C B"]
[Black "Boruchovsky, Avital"]
[WhiteFideId "409561"]
[BlackFideId "2800055"]
[WhiteElo "2657"]
[BlackElo "2458"]
[Result "0-1"]
[Round "07"]
[TimeControl "180+1"]
[Date "2022.11.08"]
[WhiteClock "0:00:03"]
[BlackClock "0:00:07"]

1. Nf3 {[%clk 0:03:00]}  c5 {[%clk 0:02:59]} 2. g3 {[%clk 0:03:00]}  Nc6 {[%clk 0:02:59]} 3. c4 {[%clk 0:03:00]}  g6 {[%clk 0:02:59]} 4. Bg2 {[%clk 0:02:59]}  Bg7 {[%clk 0:02:59]} 5. Nc3 {[%clk 0:02:59]}  e6 {[%clk 0:02:58]} 6. O-O {[%clk 0:02:59]}  Nge7 {[%clk 0:02:58]} 7. d3 {[%clk 0:02:57]}  d5 {[%clk 0:02:58]} 8. cxd5 {[%clk 0:02:56]}  Nxd5 {[%clk 0:02:56]} 9. Bd2 {[%clk 0:02:55]}  O-O {[%clk 0:02:56]} 10. Qc1 {[%clk 0:02:54]}  Nxc3 {[%clk 0:02:41]} 11. bxc3 {[%clk 0:02:54]}  b6 {[%clk 0:02:35]} 12. Bh6 {[%clk 0:02:46]}  Bb7 {[%clk 0:02:34]} 13. h4 {[%clk 0:02:36]}  Qf6 {[%clk 0:02:30]} 14. Bxg7 {[%clk 0:02:27]}  Kxg7 {[%clk 0:02:31]} 15. h5 {[%clk 0:02:09]}  Ne7 {[%clk 0:02:19]} 16. e4 {[%clk 0:01:49]}  gxh5 {[%clk 0:02:18]} 17. Nh4 {[%clk 0:01:35]}  Qh6 {[%clk 0:02:07]} 18. f4 {[%clk 0:01:34]}  Ng6 {[%clk 0:02:00]} 19. Nf3 {[%clk 0:01:22]}  Kh8 {[%clk 0:01:50]} 20. f5 {[%clk 0:01:13]}  Qxc1 {[%clk 0:01:48]} 21. Raxc1 {[%clk 0:01:14]}  exf5 {[%clk 0:01:43]} 22. exf5 {[%clk 0:01:15]}  Ne7 {[%clk 0:01:43]} 23. f6 {[%clk 0:01:05]}  Ng6 {[%clk 0:01:23]} 24. Rce1 {[%clk 0:00:54]}  Rad8 {[%clk 0:00:22]} 25. Re3 {[%clk 0:00:53]}  Rd6 {[%clk 0:00:17]} 26. Ng5 {[%clk 0:00:43]}  Bxg2 {[%clk 0:00:18]} 27. Kxg2 {[%clk 0:00:40]}  h6 {[%clk 0:00:18]} 28. Ne4 {[%clk 0:00:38]}  Re6 {[%clk 0:00:18]} 29. Rf5 {[%clk 0:00:32]}  h4 {[%clk 0:00:18]} 30. Rh5 {[%clk 0:00:32]}  Kg8 {[%clk 0:00:14]} 31. Rxh6 {[%clk 0:00:30]}  Rd8 {[%clk 0:00:14]} 32. gxh4 {[%clk 0:00:26]}  Rxd3 {[%clk 0:00:15]} 33. Rxd3 {[%clk 0:00:24]}  Nf4+ {[%clk 0:00:14]} 34. Kf3 {[%clk 0:00:19]}  Nxd3 {[%clk 0:00:15]} 35. Ng5 {[%clk 0:00:19]}  Re1 {[%clk 0:00:13]} 36. Kg4 {[%clk 0:00:13]}  Ne5+ {[%clk 0:00:12]} 37. Kf5 {[%clk 0:00:10]}  Nd7 {[%clk 0:00:05]} 38. Nf3 {[%clk 0:00:09]}  Re3 {[%clk 0:00:04]} 39. Kf4 {[%clk 0:00:03]}  Rxc3 {[%clk 0:00:04]} 40. Ng5 {[%clk 0:00:01]}  Rc1 {[%clk 0:00:04]} 41. Ne4 {[%clk 0:00:02]}  c4 {[%clk 0:00:03]} 42. Rh5 {[%clk 0:00:02]}  c3 {[%clk 0:00:03]} 43. Rg5+ {[%clk 0:00:02]}  Kf8 {[%clk 0:00:03]} 44. Rh5 {[%clk 0:00:02]}  Rf1+ {[%clk 0:00:04]} 45. Kg5 {[%clk 0:00:02]}  Kg8 {[%clk 0:00:03]} 46. Nxc3 {[%clk 0:00:02]}  Nxf6 {[%clk 0:00:04]} 47. Rh6 {[%clk 0:00:02]}  Kg7 {[%clk 0:00:03]} 48. Ne2 {[%clk 0:00:01]}  Nh7+ {[%clk 0:00:03]} 49. Kh5 {[%clk 0:00:01]}  Re1 {[%clk 0:00:03]} 50. Nf4 {[%clk 0:00:01]}  Re5+ {[%clk 0:00:03]} 51. Kg4 {[%clk 0:00:02]}  Kxh6 {[%clk 0:00:03]} 52. Nd3 {[%clk 0:00:02]}  Ra5 {[%clk 0:00:04]} 53. a3 {[%clk 0:00:02]}  Ra4+ {[%clk 0:00:04]} 54. Kf5 {[%clk 0:00:02]}  Rxa3 {[%clk 0:00:05]} 55. Ne5 {[%clk 0:00:02]}  Ra5 {[%clk 0:00:06]} 56. Ke4 {[%clk 0:00:03]}  Rxe5+ {[%clk 0:00:06]} 57. Kxe5 {[%clk 0:00:03]}  f6+ {[%clk 0:00:07]} 0-1


[Site "https://www.chess.com"]

[Event "Titled Tuesday Blitz November 08 Late 2022"]
[White "Kanakaris, Georgios"]
[Black "Hansen, Eric"]
[WhiteFideId "4209460"]
[BlackFideId "2606771"]
[WhiteElo "2291"]
[BlackElo "2568"]
[Result "1-0"]
[Round "07"]
[TimeControl "180+1"]
[Date "2022.11.08"]
[WhiteClock "0:00:11"]
[BlackClock "0:00:01"]

1. e4 {[%clk 0:03:00]}  c5 {[%clk 0:03:00]} 2. Nf3 {[%clk 0:03:01]}  e6 {[%clk 0:03:00]} 3. b3 {[%clk 0:03:00]}  Nc6 {[%clk 0:03:00]} 4. Bb2 {[%clk 0:03:01]}  d6 {[%clk 0:03:01]} 5. d4 {[%clk 0:02:58]}  Nf6 {[%clk 0:03:01]} 6. Nbd2 {[%clk 0:02:49]}  cxd4 {[%clk 0:03:01]} 7. Nxd4 {[%clk 0:02:50]}  Bd7 {[%clk 0:03:00]} 8. Bd3 {[%clk 0:02:48]}  Rc8 {[%clk 0:02:58]} 9. O-O {[%clk 0:02:47]}  Be7 {[%clk 0:02:56]} 10. Nc4 {[%clk 0:02:40]}  O-O {[%clk 0:02:43]} 11. Nxc6 {[%clk 0:02:26]}  Bxc6 {[%clk 0:02:42]} 12. e5 {[%clk 0:02:26]}  dxe5 {[%clk 0:02:41]} 13. Nxe5 {[%clk 0:02:27]}  Be8 {[%clk 0:02:36]} 14. Qf3 {[%clk 0:02:23]}  Qc7 {[%clk 0:02:34]} 15. Qh3 {[%clk 0:02:17]}  h6 {[%clk 0:02:29]} 16. Ng4 {[%clk 0:02:00]}  Qf4 {[%clk 0:02:24]} 17. Ne5 {[%clk 0:01:41]}  Nd5 {[%clk 0:01:56]} 18. Rae1 {[%clk 0:01:36]}  Qh4 {[%clk 0:01:37]} 19. Qf3 {[%clk 0:01:21]}  Qf4 {[%clk 0:01:35]} 20. Qh3 {[%clk 0:01:19]}  Qh4 {[%clk 0:01:30]} 21. Qf3 {[%clk 0:01:19]}  Bc6 {[%clk 0:01:04]} 22. Nxc6 {[%clk 0:01:11]}  bxc6 {[%clk 0:01:02]} 23. Re4 {[%clk 0:01:10]}  Qg5 {[%clk 0:00:25]} 24. Rg4 {[%clk 0:01:09]}  Rfd8 {[%clk 0:00:16]} 25. Rxg5 {[%clk 0:01:07]}  Bxg5 {[%clk 0:00:17]} 26. Qe4 {[%clk 0:01:05]}  Nf6 {[%clk 0:00:14]} 27. Bxf6 {[%clk 0:01:03]}  Bxf6 {[%clk 0:00:15]} 28. g3 {[%clk 0:01:00]}  g6 {[%clk 0:00:14]} 29. Re1 {[%clk 0:00:58]}  Kg7 {[%clk 0:00:14]} 30. Qa4 {[%clk 0:00:57]}  Rc7 {[%clk 0:00:14]} 31. Re4 {[%clk 0:00:57]}  c5 {[%clk 0:00:14]} 32. Qb5 {[%clk 0:00:54]}  Rd6 {[%clk 0:00:13]} 33. Ra4 {[%clk 0:00:50]}  Rb6 {[%clk 0:00:09]} 34. Qe8 {[%clk 0:00:45]}  h5 {[%clk 0:00:09]} 35. Qa8 {[%clk 0:00:43]}  Rbb7 {[%clk 0:00:07]} 36. Be4 {[%clk 0:00:41]}  Rb4 {[%clk 0:00:07]} 37. Rxb4 {[%clk 0:00:37]}  cxb4 {[%clk 0:00:08]} 38. h4 {[%clk 0:00:34]}  Bc3 {[%clk 0:00:06]} 39. Kf1 {[%clk 0:00:33]}  Rd7 {[%clk 0:00:06]} 40. Bd3 {[%clk 0:00:32]}  Rc7 {[%clk 0:00:04]} 41. Qe4 {[%clk 0:00:32]}  a5 {[%clk 0:00:03]} 42. f3 {[%clk 0:00:31]}  Rc5 {[%clk 0:00:03]} 43. g4 {[%clk 0:00:21]}  Bf6 {[%clk 0:00:01]} 44. g5 {[%clk 0:00:16]}  Bc3 {[%clk 0:00:01]} 45. f4 {[%clk 0:00:15]}  Rd5 {[%clk 0:00:01]} 46. Ke2 {[%clk 0:00:14]}  Kf8 {[%clk 0:00:01]} 47. Kf3 {[%clk 0:00:14]}  Rd4 {[%clk 0:00:01]} 48. Qa8+ {[%clk 0:00:13]}  Kg7 {[%clk 0:00:01]} 49. Qxa5 {[%clk 0:00:13]}  Rd5 {[%clk 0:00:02]} 50. Qb6 {[%clk 0:00:12]}  Rd4 {[%clk 0:00:02]} 51. Qc5 {[%clk 0:00:12]}  Kg8 {[%clk 0:00:01]} 52. a4 {[%clk 0:00:11]}  Rd5 {[%clk 0:00:01]} 53. Qc8+ {[%clk 0:00:11]}  Kg7 {[%clk 0:00:02]} 54. Qc7 {[%clk 0:00:11]}  Kg8 {[%clk 0:00:01]} 55. a5 {[%clk 0:00:11]}  Bd4 {[%clk 0:00:01]} 56. a6 {[%clk 0:00:11]}  Rc5 {[%clk 0:00:01]} 57. Qb8+ {[%clk 0:00:11]}  Kg7 {[%clk 0:00:01]} 58. a7 {[%clk 0:00:11]} 1-0


[Site "https://www.chess.com"]

[Event "Titled Tuesday Blitz November 08 Late 2022"]
[White "Korkmaz, Necmettin"]
[Black "Bazeev, German"]
[WhiteFideId "6303285"]
[BlackFideId "24119350"]
[WhiteElo "2094"]
[BlackElo "2493"]
[Result "0-1"]
[Round "07"]
[TimeControl "180+1"]
[Date "2022.11.09"]
[WhiteClock "0:00:18"]
[BlackClock "0:00:10"]

1. e4 {[%clk 0:03:00]}  c5 {[%clk 0:02:54]} 2. Nc3 {[%clk 0:03:00]}  Nc6 {[%clk 0:02:54]} 3. f4 {[%clk 0:03:00]}  e6 {[%clk 0:02:53]} 4. Nf3 {[%clk 0:03:00]}  Nge7 {[%clk 0:02:53]} 5. g3 {[%clk 0:02:55]}  d5 {[%clk 0:02:49]} 6. e5 {[%clk 0:02:54]}  Nf5 {[%clk 0:02:48]} 7. Bg2 {[%clk 0:02:54]}  h5 {[%clk 0:02:48]} 8. O-O {[%clk 0:02:53]}  h4 {[%clk 0:02:48]} 9. g4 {[%clk 0:02:51]}  h3 {[%clk 0:02:48]} 10. Bh1 {[%clk 0:02:50]}  Nfd4 {[%clk 0:02:43]} 11. Ne2 {[%clk 0:02:45]}  Qb6 {[%clk 0:02:09]} 12. Nexd4 {[%clk 0:02:35]}  cxd4 {[%clk 0:01:59]} 13. d3 {[%clk 0:02:35]}  Bd7 {[%clk 0:01:59]} 14. Bd2 {[%clk 0:02:17]}  Be7 {[%clk 0:01:56]} 15. Be1 {[%clk 0:02:17]}  O-O-O {[%clk 0:01:45]} 16. Bf2 {[%clk 0:02:16]}  Qxb2 {[%clk 0:01:42]} 17. Rb1 {[%clk 0:02:16]}  Qa3 {[%clk 0:01:42]} 18. Nxd4 {[%clk 0:02:15]}  Nxd4 {[%clk 0:01:41]} 19. Bxd4 {[%clk 0:02:14]}  Bc5 {[%clk 0:01:42]} 20. c3 {[%clk 0:02:09]}  Qxc3 {[%clk 0:01:26]} 21. Bxc5 {[%clk 0:02:04]}  Qxc5+ {[%clk 0:01:27]} 22. d4 {[%clk 0:02:05]}  Qa5 {[%clk 0:01:23]} 23. Bf3 {[%clk 0:01:56]}  Kb8 {[%clk 0:01:17]} 24. Qb3 {[%clk 0:01:54]}  b6 {[%clk 0:01:17]} 25. f5 {[%clk 0:01:50]}  Rc8 {[%clk 0:01:16]} 26. fxe6 {[%clk 0:01:46]}  fxe6 {[%clk 0:00:55]} 27. Qe3 {[%clk 0:01:32]}  Qc3 {[%clk 0:00:51]} 28. Qf2 {[%clk 0:01:16]}  Rhf8 {[%clk 0:00:48]} 29. Rb3 {[%clk 0:00:58]}  Qc2 {[%clk 0:00:40]} 30. Rfb1 {[%clk 0:00:40]}  Rf4 {[%clk 0:00:31]} 31. Qe3 {[%clk 0:00:34]}  Rcf8 {[%clk 0:00:21]} 32. R3b2 {[%clk 0:00:17]}  Qc4 {[%clk 0:00:08]} 33. Rb4 {[%clk 0:00:16]}  Qc7 {[%clk 0:00:07]} 34. Qa3 {[%clk 0:00:14]}  Rxf3 {[%clk 0:00:06]} 35. Qa6 {[%clk 0:00:14]}  Bc8 {[%clk 0:00:04]} 36. Rxb6+ {[%clk 0:00:14]}  axb6 {[%clk 0:00:05]} 37. Rxb6+ {[%clk 0:00:14]}  Bb7 {[%clk 0:00:05]} 38. Qe2 {[%clk 0:00:14]}  Rf1+ {[%clk 0:00:05]} 39. Qxf1 {[%clk 0:00:14]}  Rxf1+ {[%clk 0:00:06]} 40. Kxf1 {[%clk 0:00:15]}  Qxb6 {[%clk 0:00:07]} 41. Kf2 {[%clk 0:00:16]}  Qa6 {[%clk 0:00:08]} 42. Kg3 {[%clk 0:00:17]}  Qa5 {[%clk 0:00:09]} 43. Kxh3 {[%clk 0:00:18]}  Qa4 {[%clk 0:00:10]} 0-1


[Site "https://www.chess.com"]

[Event "Titled Tuesday Blitz November 08 Late 2022"]
[White "Kovacevic, Radmila"]
[Black "Arbunic Castro, Giovanna"]
[WhiteFideId "933171"]
[BlackFideId "3400549"]
[WhiteElo "2208"]
[BlackElo "1874"]
[Result "0-1"]
[Round "07"]
[TimeControl "180+1"]
[Date "2022.11.09"]
[WhiteClock "0:00:06"]
[BlackClock "0:00:10"]

1. e4 {[%clk 0:03:00]}  g6 {[%clk 0:02:57]} 2. d4 {[%clk 0:03:00]}  Bg7 {[%clk 0:02:56]} 3. h4 {[%clk 0:03:00]}  h5 {[%clk 0:02:55]} 4. c3 {[%clk 0:03:00]}  c5 {[%clk 0:02:54]} 5. dxc5 {[%clk 0:03:00]}  Nf6 {[%clk 0:02:52]} 6. Bd3 {[%clk 0:02:57]}  a5 {[%clk 0:02:39]} 7. Bg5 {[%clk 0:02:52]}  Na6 {[%clk 0:02:36]} 8. e5 {[%clk 0:02:42]}  Ng4 {[%clk 0:02:32]} 9. Bxa6 {[%clk 0:02:36]}  Rxa6 {[%clk 0:02:26]} 10. f4 {[%clk 0:02:35]}  f6 {[%clk 0:02:20]} 11. Qd3 {[%clk 0:02:30]}  fxg5 {[%clk 0:02:18]} 12. hxg5 {[%clk 0:02:28]}  d6 {[%clk 0:01:57]} 13. Qxg6+ {[%clk 0:02:27]}  Kf8 {[%clk 0:01:54]} 14. e6 {[%clk 0:02:25]}  Qe8 {[%clk 0:01:51]} 15. Qf5+ {[%clk 0:02:24]}  Kg8 {[%clk 0:01:45]} 16. c6 {[%clk 0:02:02]}  Rxc6 {[%clk 0:01:38]} 17. Nf3 {[%clk 0:01:44]}  d5 {[%clk 0:01:35]} 18. Qf7+ {[%clk 0:01:12]}  Qxf7 {[%clk 0:01:30]} 19. exf7+ {[%clk 0:01:13]}  Kxf7 {[%clk 0:01:29]} 20. Nbd2 {[%clk 0:01:10]}  Re6+ {[%clk 0:01:14]} 21. Kf1 {[%clk 0:00:59]}  Rb6 {[%clk 0:00:58]} 22. Rb1 {[%clk 0:00:53]}  Bf5 {[%clk 0:00:51]} 23. Re1 {[%clk 0:00:48]}  Rxb2 {[%clk 0:00:48]} 24. g6+ {[%clk 0:00:46]}  Kxg6 {[%clk 0:00:37]} 25. Rxe7 {[%clk 0:00:46]}  Bxc3 {[%clk 0:00:35]} 26. Re2 {[%clk 0:00:20]}  Bd3 {[%clk 0:00:32]} 27. Ne5+ {[%clk 0:00:10]}  Nxe5 {[%clk 0:00:28]} 28. fxe5 {[%clk 0:00:10]}  Rf8+ {[%clk 0:00:27]} 29. Kg1 {[%clk 0:00:10]}  Bxe2 {[%clk 0:00:26]} 30. Nf3 {[%clk 0:00:10]}  Bxf3 {[%clk 0:00:23]} 31. Rh3 {[%clk 0:00:07]}  Rb1+ {[%clk 0:00:19]} 32. Kf2 {[%clk 0:00:07]}  Bxe5 {[%clk 0:00:20]} 33. gxf3 {[%clk 0:00:06]}  Rb2+ {[%clk 0:00:19]} 34. Ke3 {[%clk 0:00:07]}  Rxa2 {[%clk 0:00:19]} 35. Kd3 {[%clk 0:00:07]}  a4 {[%clk 0:00:18]} 36. f4 {[%clk 0:00:06]}  Bf6 {[%clk 0:00:17]} 37. f5+ {[%clk 0:00:05]}  Kxf5 {[%clk 0:00:17]} 38. Rf3+ {[%clk 0:00:06]}  Kg4 {[%clk 0:00:16]} 39. Rf1 {[%clk 0:00:04]}  a3 {[%clk 0:00:16]} 40. Rg1+ {[%clk 0:00:04]}  Kf5 {[%clk 0:00:14]} 41. Rf1+ {[%clk 0:00:04]}  Ke6 {[%clk 0:00:14]} 42. Re1+ {[%clk 0:00:04]}  Kd6 {[%clk 0:00:14]} 43. Rb1 {[%clk 0:00:04]}  Rb2 {[%clk 0:00:14]} 44. Ra1 {[%clk 0:00:05]}  a2 {[%clk 0:00:14]} 45. Ke3 {[%clk 0:00:04]}  Re2+ {[%clk 0:00:13]} 46. Kd3 {[%clk 0:00:04]}  Bxa1 {[%clk 0:00:13]} 47. Kxe2 {[%clk 0:00:04]}  Bd4 {[%clk 0:00:13]} 48. Kd3 {[%clk 0:00:05]}  a1=Q {[%clk 0:00:12]} 49. Kc2 {[%clk 0:00:06]}  Qb2+ {[%clk 0:00:12]} 50. Kd1 {[%clk 0:00:06]}  Rf1# {[%clk 0:00:10]} 0-1


[Site "https://www.chess.com"]

[Event "Titled Tuesday Blitz November 08 Late 2022"]
[White "Krishnan, Varun"]
[Black "Machidon, Cristi"]
[WhiteFideId "5054508"]
[BlackFideId "13904590"]
[WhiteElo "2535"]
[BlackElo "2333"]
[Result "1-0"]
[Round "07"]
[TimeControl "180+1"]
[Date "2022.11.09"]
[WhiteClock "0:01:11"]
[BlackClock "0:00:35"]

1. d4 {[%clk 0:03:00]}  Nf6 {[%clk 0:02:59]} 2. c4 {[%clk 0:03:00]}  e6 {[%clk 0:02:59]} 3. Nf3 {[%clk 0:02:59]}  Bb4+ {[%clk 0:02:59]} 4. Nbd2 {[%clk 0:02:58]}  O-O {[%clk 0:02:58]} 5. g3 {[%clk 0:02:58]}  d5 {[%clk 0:02:57]} 6. Bg2 {[%clk 0:02:57]}  dxc4 {[%clk 0:02:57]} 7. O-O {[%clk 0:02:56]}  b5 {[%clk 0:02:53]} 8. a4 {[%clk 0:02:50]}  c6 {[%clk 0:02:49]} 9. Ne5 {[%clk 0:02:40]}  Nd5 {[%clk 0:02:49]} 10. Qc2 {[%clk 0:02:34]}  Qb6 {[%clk 0:02:38]} 11. e3 {[%clk 0:02:29]}  Nd7 {[%clk 0:02:36]} 12. Ndf3 {[%clk 0:02:27]}  Nxe5 {[%clk 0:02:24]} 13. Nxe5 {[%clk 0:02:27]}  f6 {[%clk 0:02:14]} 14. Nf3 {[%clk 0:02:27]}  Rd8 {[%clk 0:02:10]} 15. e4 {[%clk 0:02:26]}  Ne7 {[%clk 0:02:09]} 16. Be3 {[%clk 0:02:26]}  a6 {[%clk 0:02:02]} 17. b3 {[%clk 0:02:26]}  c3 {[%clk 0:01:56]} 18. Rfd1 {[%clk 0:02:13]}  Qb8 {[%clk 0:01:51]} 19. Bf4 {[%clk 0:02:06]}  Qb6 {[%clk 0:01:48]} 20. Be3 {[%clk 0:02:05]}  Bb7 {[%clk 0:01:42]} 21. d5 {[%clk 0:01:57]}  Bc5 {[%clk 0:01:36]} 22. d6 {[%clk 0:01:53]}  Bxe3 {[%clk 0:01:26]} 23. dxe7 {[%clk 0:01:38]}  Rxd1+ {[%clk 0:01:27]} 24. Rxd1 {[%clk 0:01:38]}  Bc5 {[%clk 0:01:28]} 25. Rd7 {[%clk 0:01:36]}  Re8 {[%clk 0:01:22]} 26. a5 {[%clk 0:01:36]}  Qa7 {[%clk 0:00:45]} 27. e5 {[%clk 0:01:36]}  f5 {[%clk 0:00:35]} 28. Ng5 {[%clk 0:01:12]}  Rxe7 {[%clk 0:00:35]} 29. Rd8+ {[%clk 0:01:11]} 1-0


[Site "https://www.chess.com"]

[Event "Titled Tuesday Blitz November 08 Late 2022"]
[White "Kumala, Aleksander"]
[Black "Brown, Andrew"]
[WhiteFideId "1141880"]
[BlackFideId "3206513"]
[WhiteElo "2269"]
[BlackElo "2245"]
[Result "1-0"]
[Round "07"]
[TimeControl "180+1"]
[Date "2022.11.09"]
[WhiteClock "0:00:14"]
[BlackClock "0:00:03"]

1. d4 {[%clk 0:03:00]}  g6 {[%clk 0:02:56]} 2. e4 {[%clk 0:03:00]}  Bg7 {[%clk 0:02:56]} 3. h4 {[%clk 0:03:00]}  h5 {[%clk 0:02:55]} 4. g4 {[%clk 0:02:58]}  hxg4 {[%clk 0:02:54]} 5. Qxg4 {[%clk 0:02:48]}  d5 {[%clk 0:02:54]} 6. Qg2 {[%clk 0:02:46]}  dxe4 {[%clk 0:02:53]} 7. c3 {[%clk 0:02:46]}  Nf6 {[%clk 0:02:43]} 8. Bg5 {[%clk 0:02:45]}  O-O {[%clk 0:01:49]} 9. Nd2 {[%clk 0:02:43]}  Bf5 {[%clk 0:01:45]} 10. O-O-O {[%clk 0:02:34]}  Nc6 {[%clk 0:01:40]} 11. Bxf6 {[%clk 0:02:31]}  exf6 {[%clk 0:01:40]} 12. h5 {[%clk 0:02:23]}  Re8 {[%clk 0:01:31]} 13. Bc4 {[%clk 0:02:15]}  Kf8 {[%clk 0:01:04]} 14. Ne2 {[%clk 0:02:01]}  Na5 {[%clk 0:00:48]} 15. h6 {[%clk 0:01:56]}  Bh8 {[%clk 0:00:48]} 16. Bb5 {[%clk 0:01:42]}  c6 {[%clk 0:00:46]} 17. Ba4 {[%clk 0:01:42]}  e3 {[%clk 0:00:40]} 18. fxe3 {[%clk 0:01:40]}  Rxe3 {[%clk 0:00:39]} 19. Ng3 {[%clk 0:01:34]}  Bg4 {[%clk 0:00:21]} 20. Rde1 {[%clk 0:01:21]}  Qe7 {[%clk 0:00:21]} 21. Nge4 {[%clk 0:01:12]}  Rxe1+ {[%clk 0:00:17]} 22. Rxe1 {[%clk 0:01:12]}  Bf5 {[%clk 0:00:16]} 23. Bc2 {[%clk 0:01:07]}  Re8 {[%clk 0:00:16]} 24. Rf1 {[%clk 0:01:07]}  Qc7 {[%clk 0:00:13]} 25. b4 {[%clk 0:00:56]}  Bxe4 {[%clk 0:00:12]} 26. Bxe4 {[%clk 0:00:52]}  f5 {[%clk 0:00:12]} 27. Bc2 {[%clk 0:00:44]}  Re3 {[%clk 0:00:10]} 28. Rf3 {[%clk 0:00:32]}  Re1+ {[%clk 0:00:08]} 29. Kb2 {[%clk 0:00:30]}  Qb6 {[%clk 0:00:06]} 30. Rf1 {[%clk 0:00:23]}  Re3 {[%clk 0:00:04]} 31. Kc1 {[%clk 0:00:20]}  Bxd4 {[%clk 0:00:04]} 32. bxa5 {[%clk 0:00:20]}  Qxa5 {[%clk 0:00:04]} 33. cxd4 {[%clk 0:00:18]}  Qa3+ {[%clk 0:00:04]} 34. Kd1 {[%clk 0:00:17]}  Qb2 {[%clk 0:00:02]} 35. h7 {[%clk 0:00:16]}  Kg7 {[%clk 0:00:02]} 36. Rh1 {[%clk 0:00:15]}  Kh8 {[%clk 0:00:02]} 37. Qh2 {[%clk 0:00:14]}  Qa1+ {[%clk 0:00:02]} 38. Bb1 {[%clk 0:00:14]}  Qxd4 {[%clk 0:00:03]} 39. Qb8+ {[%clk 0:00:14]} 1-0


[Site "https://www.chess.com"]